[Event "56th Rubinstein Memorial C 2020"]
[Site "Polanica Zdroj"]
[Date "2020.08.23"]
[Round "9.10"]
[White "Lambrecht, Tomasz"]
[Black "Szopa, Emilia"]
[Result "1-0"]
[ECO "A59"]
[WhiteElo "1750"]
[BlackElo "1628"]
[Annotator "NA"]
[PlyCount "91"]
[EventDate "2020.08.15"]
[EventType "swiss"]
[EventCountry "POL"]
[SourceTitle "playchess.com"]
[Source "ChessBase"]
[SourceQuality "1"]
[TimeControl "40/5400+30:1800+30"]

1. d4 {[%emt 0:00:00]} Nf6 {[%emt 0:00:00]} 2. c4 {[%emt 0:00:00]} c5 {[%emt 0:00:00]} 3. d5 {[%emt 0:00:00]} b5 {[%emt 0:00:02]} 4. cxb5 {[%emt 0:00:00]} a6 {[%emt 0:00:14]} 5. bxa6 {[%emt 0:00:00]} Bxa6 {[%emt 0:00:08]} 6. Nc3 {[%emt 0:00:01]} d6 {[%emt 0:00:20]} 7. e4 {[%emt 0:00:14]} Bxf1 {[%emt 0:00:16]} 8. Kxf1 {[%emt 0:00:02]} g6 {[%emt 0:00:41]} 9. g3 {[%emt 0:00:15]} Bg7 {[%emt 0:00:17]} 10. Kg2 {[%emt 0:00:04]} O-O {[%emt 0:00:31]} 11. Nf3 {[%emt 0:00:03]} Nbd7 {[%emt 0:00:25]} 12. a4 {[%emt 0:00:04]} Qb6 {[%emt 0:02:54]} 13. Qc2 {[%emt 0:05:59]} Rfb8 {[%emt 0:03:20]} 14. Nb5 {[%emt 0:03:59]} Ne8 {[%emt 0:02:41]} 15. Nd2 {[%emt 0:25:31]} Nc7 {[%emt 0:05:40]} 16. Nc4 {[%emt 0:02:09]} Qb7 {[%emt 0:00:21]} 17. Nxc7 {[%emt 0:00:36]} Qxc7 {[%emt 0:00:10]} 18. Bd2 {[%emt 0:07:52]} Ne5 {[%emt 0:12:08]} 19. Nxe5 {[%emt 0:02:27]} Bxe5 {[%emt 0:00:18]} 20. Rab1 {[%emt 0:09:00]} c4 {[%emt 0:08:21]} 21. Rhc1 {[%emt 0:28:48]} Rc8 {[%emt 0:00:40]} 22. Bc3 {[%emt 0:02:46]} Bxc3 {[%emt 0:00:56]} 23. bxc3 {[%emt 0:00:46]} Qa5 {[%emt 0:06:44]} 24. Rb4 {[%emt 0:00:13]} Rab8 {[%emt 0:01:59]} 25. Rcb1 {[%emt 0:00:57]} Qa7 {[%emt 0:00:49]} 26. Qa2 {[%emt 0:03:49]} Rxb4 {[%emt 0:01:06]} 27. Rxb4 {[%emt 0:00:06]} Qa6 {[%emt 0:03:03]} 28. h4 {[%emt 0:01:54]} e6 {[%emt 0:02:04]} 29. Qd2 {[%emt 0:01:36]} Rc5 {[%emt 0:02:30]} 30. dxe6 {[%emt 0:01:33]} fxe6 {[%emt 0:00:04]} 31. Rb8+ {[%emt 0:00:33]} Kg7 {[%emt 0:03:28]} 32. Qf4 {[%emt 0:00:16]} Rc8 {[%emt 0:00:25]} 33. Rxc8 {[%emt 0:00:11]} Qxc8 {[%emt 0:00:07]} 34. Qxd6 {[%emt 0:00:07]} Kf7 {[%emt 0:02:17]} 35. Qf4+ {[%emt 0:02:03]} Kg8 {[%emt 0:00:37]} 36. Qe5 {[%emt 0:00:27]} Kf7 {[%emt 0:00:53]} 37. h5 {[%emt 0:00:18]} gxh5 {[%emt 0:00:55]} 38. Qxh5+ {[%emt 0:00:04]} Kg7 {[%emt 0:00:11]} 39. Qe5+ {[%emt 0:00:25]} Kf7 {[%emt 0:00:12]} 40. a5 {[%emt 0:00:00]} Qc6 {[%emt 0:00:00]} 41. Qd4 {[%emt 0:15:08]} Kg6 {[%emt 0:01:57]} 42. Kf3 {[%emt 0:01:03]} Kf7 {[%emt 0:01:23]} 43. Qb6 {[%emt 0:02:04]} Qd7 {[%emt 0:00:43]} 44. a6 {[%emt 0:02:41]} Qd3+ {[%emt 0:00:46]} 45. Qe3 {[%emt 0:00:18]} Qd1+ {[%emt 0:00:08]} 46. Kg2 {[%emt 0:00:18]} 1-0

[Event "56th Rubinstein Memorial C 2020"]
[Site "Polanica Zdroj"]
[Date "2020.08.23"]
[Round "9.11"]
[White "Kawalko, Adam"]
[Black "Krzyzosiak, Marta"]
[Result "1-0"]
[ECO "B76"]
[WhiteElo "1950"]
[BlackElo "1565"]
[Annotator "NA"]
[PlyCount "93"]
[EventDate "2020.08.15"]
[EventType "swiss"]
[EventCountry "POL"]
[SourceTitle "playchess.com"]
[Source "ChessBase"]
[SourceQuality "1"]
[TimeControl "40/5400+30:1800+30"]

1. e4 {[%emt 0:00:00]} c5 {[%emt 0:00:00]} 2. Nf3 {[%emt 0:00:00]} d6 {[%emt 0:00:00]} 3. d4 {[%emt 0:00:20]} cxd4 {[%emt 0:00:03]} 4. Nxd4 {[%emt 0:00:10]} Nf6 {[%emt 0:00:17]} 5. Nc3 {[%emt 0:00:16]} g6 {[%emt 0:00:19]} 6. Be3 {[%emt 0:01:26]} Bg7 {[%emt 0:00:32]} 7. f3 {[%emt 0:00:54]} O-O {[%emt 0:00:58]} 8. Qd2 {[%emt 0:00:50]} Nc6 {[%emt 0:01:18]} 9. O-O-O {[%emt 0:00:34]} d5 {[%emt 0:01:46]} 10. Nxc6 {[%emt 0:02:03]} bxc6 {[%emt 0:00:37]} 11. exd5 {[%emt 0:00:07]} Nxd5 {[%emt 0:02:04]} 12. Nxd5 {[%emt 0:00:12]} cxd5 {[%emt 0:00:28]} 13. Qxd5 {[%emt 0:00:07]} Qxd5 {[%emt 0:00:43] B76: Sicilian Dragon: Yugoslav Attack, 9 g4 and 9 0-0-0.} 14. Rxd5 {[%emt 0:00:08]} a5 {[%emt 0:03:53]} 15. Rc5 {[%emt 0:10:24]} Be6 {[%emt 0:06:04]} 16. Bc4 {[%emt 0:02:31]} Rfb8 {[%emt 0:10:18]} 17. c3 {[%emt 0:04:33]} Bxc4 {[%emt 0:11:57]} 18. Rxc4 {[%emt 0:00:45] [#]} Rb5 $146 {[%emt 0:01:21]} ({Predecessor:} 18... a4 19. Kc2 Rb7 20. a3 Rb3 21. Bc5 Rb5 22. Bd4 Bh6 23. Re1 e6 24. Re5 Rb7 {1-0 (50) Lopez Nocera,V (2004)-Alegre,E Villa Martelli 2006}) 19. Rc5 {[%emt 0:09:44]} Rab8 {[%emt 0:03:40]} (19... Rxc5 $16 {was worth a try.} 20. Bxc5 e6) 20. Rxb5 {[%emt 0:01:07]} Rxb5 {[%emt 0:00:08]} 21. Rd1 {[%emt 0:00:34]} f5 {[%emt 0:09:59]} 22. Kc2 {[%emt 0:03:23]} Kf7 {[%emt 0:06:27]} (22... Re5 {was necessary.}) 23. b3 {[%emt 0:01:53]} Be5 {[%emt 0:06:32]} 24. c4 $18 {[%emt 0:02:10]} Rb7 {[%emt 0:03:35]} 25. Rd5 {[%emt 0:04:23]} Bc7 {[%emt 0:07:01]} 26. f4 {[%emt 0:04:35]} Ke6 {[%emt 0:03:10]} 27. Kc3 {[%emt 0:04:10]} Bd6 {[%emt 0:02:52]} 28. g3 {[%emt 0:03:23]} Rb8 {[%emt 0:08:08]} 29. a4 {[%emt 0:05:36]} Bb4+ {[%emt 0:03:09]} 30. Kc2 {[%emt 0:01:54]} Rb7 {[%emt 0:03:05]} 31. Bc5 {[%emt 0:00:20]} Bxc5 {[%emt 0:00:47]} 32. Rxc5 {[%emt 0:00:03]} Ra7 {[%emt 0:00:18]} 33. Kc3 {[%emt 0:01:56]} Kd6 {[%emt 0:01:30]} 34. Kd4 {[%emt 0:01:35]} Rb7 {[%emt 0:01:34]} 35. Rb5 {[%emt 0:00:15]} Ra7 {[%emt 0:00:12]} 36. c5+ {[%emt 0:02:02]} Kc6 {[%emt 0:01:22]} 37. Rb6+ {[%emt 0:00:21]} Kc7 {[%emt 0:00:38]} 38. Re6 {[%emt 0:01:38]} Kd7 {[%emt 0:00:53]} 39. Kd5 {[%emt 0:00:49]} Ra8 {[%emt 0:00:44]} 40. Rb6 {[%emt 0:00:00]} Ra7 {[%emt 0:00:00]} 41. h3 {[%emt 0:03:12]} Ra8 {[%emt 0:03:04]} 42. Rb7+ {[%emt 0:00:38]} Kd8 {[%emt 0:01:46]} 43. c6 {[%emt 0:05:36]} Ra6 {[%emt 0:02:27]} 44. Kc5 {[%emt 0:00:13]} Ra8 {[%emt 0:00:32]} 45. Kb6 {[%emt 0:00:25]} Rc8 {[%emt 0:00:23]} 46. Rd7+ {[%emt 0:00:11]} Ke8 {[%emt 0:00:21]} 47. Kb7 {[%emt 0:00:06]} 1-0

[Event "56th Rubinstein Memorial C 2020"]
[Site "Polanica Zdroj"]
[Date "2020.08.23"]
[Round "9.12"]
[White "Ciborowski, Konrad Jr"]
[Black "Raclawicki, Kacper"]
[Result "1-0"]
[ECO "A45"]
[WhiteElo "1464"]
[BlackElo "1879"]
[Annotator "NA"]
[PlyCount "59"]
[EventDate "2020.08.15"]
[EventType "swiss"]
[EventCountry "POL"]
[SourceTitle "playchess.com"]
[Source "ChessBase"]
[SourceQuality "1"]
[TimeControl "40/5400+30:1800+30"]

{[%evp 9,52,0,49,7,10,19,19,14,18,8,7,12,15,-7,-6,-10,0,-7,0,-27,33,-18,9,-15,0,-6,12,32767,43,35,34,33,58,101,83,103,419,467,595,641,32767,589,32767,32767,760]} 1. d4 {[%emt 0:00:00]} Nf6 {[%emt 0:00:00]} 2. Bf4 {[%emt 0:00:25]} d5 {[%emt 0:01:37]} 3. e3 {[%emt 0:00:07]} c5 {[%emt 0:02:34]} 4. c3 {[%emt 0:00:04]} Bf5 {[%emt 0:04:49]} 5. Bd3 {[%emt 0:01:00] [#]} Bg6 $146 {[%emt 0:01:51]} ({Predecessor:} 5... Bxd3 6. Qxd3 c4 7. Qc2 e6 8. Nd2 Nc6 9. e4 b5 10. e5 Nd7 11. a3 a5 {0-1 (72) Degiorgis,G-Stotskaja,E (2030) Minsk 2019}) 6. h3 {[%emt 0:02:39] D00: 1 d4 d5: Unusual lines.} e6 {[%emt 0:03:11]} 7. Bxg6 {[%emt 0:02:19]} hxg6 {[%emt 0:00:31]} 8. Nf3 {[%emt 0:00:05]} Nc6 {[%emt 0:01:11]} 9. Nbd2 {[%emt 0:00:51]} Bd6 {[%emt 0:01:54]} 10. Bxd6 {[%emt 0:10:16]} Qxd6 {[%emt 0:00:10]} 11. dxc5 {[%emt 0:00:27]} Qxc5 {[%emt 0:00:22]} 12. Nb3 {[%emt 0:00:08]} Qe7 {[%emt 0:05:53]} 13. Nbd4 {[%emt 0:01:05]} O-O {[%emt 0:01:52]} 14. O-O {[%emt 0:01:33]} Ne4 {[%emt 0:01:38]} 15. Nd2 {[%emt 0:00:45]} (15. c4 $5) 15... Nd6 {[%emt 0:00:56]} 16. Qe2 {[%emt 0:01:58]} a6 {[%emt 0:03:20]} 17. Rfd1 {[%emt 0:07:41]} Rfc8 {[%emt 0:02:28]} 18. N4f3 {[%emt 0:01:52]} b5 {[%emt 0:06:59]} 19. e4 {[%emt 0:01:52]} dxe4 {[%emt 0:02:24]} 20. Nxe4 {[%emt 0:00:06]} Nc4 {[%emt 0:00:30] [#]} 21. a4 $1 {[%emt 0:02:36]} N6a5 {[%emt 0:09:01]} 22. axb5 {[%emt 0:01:03]} Nb3 $2 {[%emt 0:07:20]} (22... axb5 $16 {is more resistant.} 23. Nd4 b4) 23. Rxa6 {[%emt 0:00:05]} Rxa6 {[%emt 0:00:52]} 24. bxa6 {[%emt 0:00:04]} f5 {[%emt 0:05:41]} 25. Ned2 $18 {[%emt 0:05:01]} Nbxd2 {[%emt 0:01:21]} 26. Nxd2 {[%emt 0:00:03]} Nxb2 {[%emt 0:00:37]} 27. Rb1 {[%emt 0:00:04]} Na4 {[%emt 0:01:40]} 28. Rb7 {[%emt 0:01:02]} Nxc3 {[%emt 0:02:02]} 29. Qe5 {[%emt 0:00:28]} Qf6 {[%emt 0:01:55]} 30. Qxf6 {[%emt 0:00:23]} 1-0

[Event "56th Rubinstein Memorial C 2020"]
[Site "Polanica Zdroj"]
[Date "2020.08.23"]
[Round "9.13"]
[White "Raczek, Krzysztof"]
[Black "Halhoul, Adam"]
[Result "0-1"]
[ECO "A52"]
[WhiteElo "1712"]
[BlackElo "1579"]
[Annotator "NA"]
[PlyCount "134"]
[EventDate "2020.08.15"]
[EventType "swiss"]
[EventCountry "POL"]
[SourceTitle "playchess.com"]
[Source "ChessBase"]
[SourceQuality "1"]
[TimeControl "40/5400+30:1800+30"]

1. d4 {[%emt 0:00:00]} Nf6 {[%emt 0:00:00]} 2. c4 {[%emt 0:00:00]} e5 {[%emt 0:00:00]} 3. dxe5 {[%emt 0:00:26]} Ng4 {[%emt 0:00:00]} 4. Bf4 {[%emt 0:04:23]} Nc6 {[%emt 0:00:27]} 5. Nf3 {[%emt 0:00:27]} Bb4+ {[%emt 0:00:15]} 6. Nbd2 {[%emt 0:01:26]} Qe7 {[%emt 0:00:13]} 7. a3 {[%emt 0:01:15]} Ngxe5 {[%emt 0:00:07]} 8. Nxe5 {[%emt 0:00:19]} Nxe5 {[%emt 0:00:09]} 9. e3 {[%emt 0:00:21]} Bxd2+ {[%emt 0:00:17]} 10. Qxd2 {[%emt 0:00:12]} d6 {[%emt 0:00:40]} 11. Be2 {[%emt 0:01:16]} O-O {[%emt 0:00:29]} 12. Qc3 {[%emt 0:02:36]} b6 {[%emt 0:01:43]} 13. Bg3 {[%emt 0:01:56]} Bb7 {[%emt 0:01:06]} 14. f3 {[%emt 0:02:02]} Rfe8 {[%emt 0:01:19]} 15. O-O {[%emt 0:01:00]} h5 {[%emt 0:02:56]} 16. e4 {[%emt 0:03:29]} h4 {[%emt 0:04:07]} 17. Bxe5 {[%emt 0:00:11]} Qxe5 {[%emt 0:01:33]} 18. Qxe5 {[%emt 0:00:09]} Rxe5 {[%emt 0:00:03]} 19. Bd3 {[%emt 0:01:17]} h3 {[%emt 0:01:39]} 20. g4 {[%emt 0:00:55]} g6 {[%emt 0:02:41]} 21. Kf2 {[%emt 0:02:15]} Kg7 {[%emt 0:05:54]} 22. Kg3 {[%emt 0:00:09]} Rae8 {[%emt 0:03:16]} 23. Rad1 {[%emt 0:04:59]} f5 {[%emt 0:03:23]} 24. exf5 {[%emt 0:02:36]} gxf5 {[%emt 0:00:23]} 25. Bxf5 {[%emt 0:00:14]} Re3 {[%emt 0:01:53]} 26. Rd3 {[%emt 0:02:50]} Ba6 {[%emt 0:02:45]} 27. Rxe3 {[%emt 0:01:44]} Rxe3 {[%emt 0:00:01]} 28. Kxh3 {[%emt 0:01:14]} Bxc4 {[%emt 0:00:12]} 29. Rf2 {[%emt 0:00:07]} d5 {[%emt 0:00:57]} 30. Kg3 {[%emt 0:00:20]} d4 {[%emt 0:00:39]} 31. g5 {[%emt 0:01:48]} Be2 {[%emt 0:03:16]} 32. Kf4 {[%emt 0:00:34]} Re7 {[%emt 0:01:56]} 33. Be4 {[%emt 0:08:38]} Rf7+ {[%emt 0:02:46]} 34. Kg4 {[%emt 0:00:53]} d3 {[%emt 0:00:11]} 35. h4 {[%emt 0:02:53]} Re7 {[%emt 0:04:12]} 36. Bxd3 {[%emt 0:07:10]} Bxd3 {[%emt 0:02:06]} 37. f4 {[%emt 0:00:06]} Be2+ {[%emt 0:01:56]} 38. Kg3 {[%emt 0:00:49]} Bh5 {[%emt 0:00:08]} 39. f5 {[%emt 0:00:05]} Re3+ {[%emt 0:03:11]} 40. Kg2 {[%emt 0:00:00]} Rd3 {[%emt 0:00:00]} 41. Rc2 {[%emt 0:06:28]} c5 {[%emt 0:07:55]} 42. b4 {[%emt 0:02:53]} Rd5 {[%emt 0:09:29]} 43. bxc5 {[%emt 0:00:10]} bxc5 {[%emt 0:02:25]} 44. f6+ {[%emt 0:00:35]} Kf7 {[%emt 0:00:20]} 45. Kg3 {[%emt 0:01:28]} Ke6 {[%emt 0:06:50]} 46. Kf4 {[%emt 0:03:19]} Rf5+ {[%emt 0:01:29]} 47. Kg3 {[%emt 0:02:04]} Kd6 {[%emt 0:03:48]} 48. Rb2 {[%emt 0:02:05]} Kc7 {[%emt 0:01:42]} 49. Rc2 {[%emt 0:00:22]} Kc6 {[%emt 0:01:20]} 50. Rc3 {[%emt 0:01:11]} a5 {[%emt 0:01:39]} 51. a4 {[%emt 0:00:52]} Kb6 {[%emt 0:06:49]} 52. Rb3+ {[%emt 0:01:15]} Kc6 {[%emt 0:01:25]} 53. Rb5 {[%emt 0:00:05]} Rf3+ {[%emt 0:00:57]} 54. Kg2 {[%emt 0:00:35]} Rf4 {[%emt 0:03:28]} 55. Rxa5 {[%emt 0:01:29]} Rxh4 {[%emt 0:00:21]} 56. Ra7 {[%emt 0:07:39]} Rg4+ {[%emt 0:01:07]} 57. Kh3 {[%emt 0:00:38]} Rxg5 {[%emt 0:01:02]} 58. Kh4 {[%emt 0:00:15]} Rf5 {[%emt 0:00:41]} 59. a5 {[%emt 0:00:16]} c4 {[%emt 0:01:57]} 60. a6 {[%emt 0:00:23]} Bf3 {[%emt 0:05:34]} 61. Rb7 {[%emt 0:03:15]} Rxf6 {[%emt 0:01:38]} 62. Rb8 {[%emt 0:02:23]} Kc7 {[%emt 0:01:08]} 63. Rb4 {[%emt 0:00:11]} Bd5 {[%emt 0:01:04]} 64. Ra4 {[%emt 0:00:11]} c3 {[%emt 0:00:48]} 65. Ra3 {[%emt 0:00:30]} c2 {[%emt 0:00:19]} 66. Ra1 {[%emt 0:00:19]} Rh6+ {[%emt 0:00:22]} 67. Kg3 {[%emt 0:00:09]} Rh1 {[%emt 0:00:08]} 0-1

[Event "56th Rubinstein Memorial C 2020"]
[Site "Polanica Zdroj"]
[Date "2020.08.23"]
[Round "9.14"]
[White "Lewandowski, Wiktor"]
[Black "Straszewski, Tomasz"]
[Result "1/2-1/2"]
[ECO "C58"]
[WhiteElo "1855"]
[BlackElo "1716"]
[Annotator "NA"]
[PlyCount "80"]
[EventDate "2020.08.15"]
[EventType "swiss"]
[EventCountry "POL"]
[SourceTitle "playchess.com"]
[Source "ChessBase"]
[SourceQuality "1"]
[TimeControl "40/5400+30:1800+30"]

{[%evp 8,45,20,26,35,13,33,73,65,62,75,26,106,78,75,76,32767,91,88,83,87,90,77,66,97,47,91,9,76,37,33,0,16,32767,62,39,42,30,30,-5]} 1. e4 {[%emt 0:00:00]} e5 {[%emt 0:00:00]} 2. Nf3 {[%emt 0:00:00]} Nc6 {[%emt 0:00:00]} 3. Bc4 {[%emt 0:00:00]} Nf6 {[%emt 0:00:00]} 4. Ng5 {[%emt 0:00:02]} d5 {[%emt 0:00:01]} 5. exd5 {[%emt 0:00:05]} Na5 {[%emt 0:00:07]} 6. d3 {[%emt 0:00:07]} Bg4 {[%emt 0:03:58] C58: Two Knights: 4 Ng5 d5 5 exd5 Na5 sidelines.} 7. f3 {[%emt 0:04:18]} Nxc4 {[%emt 0:04:42]} 8. dxc4 {[%emt 0:00:33]} Bf5 {[%emt 0:00:17]} 9. Qe2 {[%emt 0:04:27]} Bd6 {[%emt 0:06:15]} (9... h6 $11) 10. O-O {[%emt 0:02:56]} O-O {[%emt 0:01:47]} 11. Nc3 {[%emt 0:00:54] [#]} Re8 $146 {[%emt 0:02:10]} ({Predecessor:} 11... Bg6 12. Kh1 Nh5 13. Nge4 f5 14. Nxd6 cxd6 15. f4 e4 16. Nb5 a6 17. Nd4 Qh4 {1-0 (41) Juarez Flores,C (2415)-Barrios,R (2155) San Salvador 1995}) 12. Nge4 {[%emt 0:02:01]} Nxe4 {[%emt 0:00:38]} 13. Nxe4 {[%emt 0:01:25]} Bf8 {[%emt 0:02:56]} 14. Be3 {[%emt 0:03:22]} b6 {[%emt 0:03:56]} 15. Rad1 {[%emt 0:01:46]} Bg6 {[%emt 0:01:38]} 16. Kh1 {[%emt 0:08:01]} h6 {[%emt 0:01:14]} 17. c3 {[%emt 0:05:23]} (17. g4 $16) 17... a5 {[%emt 0:02:03]} (17... f5 $11 {remains equal.} 18. Nf2 Bd6) 18. b3 {[%emt 0:02:16]} f5 {[%emt 0:04:09]} 19. Nf2 {[%emt 0:03:51]} Bd6 {[%emt 0:01:28]} 20. Nd3 {[%emt 0:07:44]} Bh7 {[%emt 0:04:45]} ({Better is} 20... f4 $11 21. Bc1 Qh4) 21. Bg1 {[%emt 0:05:25]} e4 {[%emt 0:02:58]} 22. fxe4 {[%emt 0:01:04]} Rxe4 {[%emt 0:00:24]} 23. Qf3 $11 {[%emt 0:02:50]} Qg5 {[%emt 0:01:15]} 24. c5 {[%emt 0:04:33]} bxc5 {[%emt 0:01:32]} 25. Nxc5 {[%emt 0:00:19]} Rf4 {[%emt 0:01:23]} 26. Qe3 {[%emt 0:01:57]} Rxf1 {[%emt 0:03:15]} 27. Rxf1 {[%emt 0:00:08]} f4 {[%emt 0:00:11]} 28. Qe6+ {[%emt 0:02:21]} Kh8 {[%emt 0:00:13]} 29. Ne4 {[%emt 0:00:23]} Bxe4 {[%emt 0:02:48]} 30. Qxe4 {[%emt 0:00:03]} a4 {[%emt 0:02:09]} 31. c4 {[%emt 0:01:39]} axb3 {[%emt 0:01:14]} 32. axb3 {[%emt 0:00:03]} Ra2 {[%emt 0:00:47]} 33. Bd4 {[%emt 0:06:33]} Qh5 {[%emt 0:03:48]} 34. h3 {[%emt 0:03:37]} f3 {[%emt 0:01:29]} 35. Rxf3 {[%emt 0:06:56]} Qg5 {[%emt 0:00:34]} 36. Re3 {[%emt 0:04:14]} Rd2 {[%emt 0:02:13]} 37. Re1 {[%emt 0:02:14]} Qg3 {[%emt 0:00:37]} 38. Bg1 {[%emt 0:02:53]} Rxg2 {[%emt 0:00:05]} 39. Qxg2 {[%emt 0:00:14]} Qxe1 {[%emt 0:00:02]} 40. Qf3 {[%emt 0:00:00]} Bc5 {[%emt 0:00:00]} 1/2-1/2

[Event "56th Rubinstein Memorial C 2020"]
[Site "Polanica Zdroj"]
[Date "2020.08.23"]
[Round "9.15"]
[White "Zalega, Maciej"]
[Black "Vanduyfhuys, Igor"]
[Result "1-0"]
[ECO "B15"]
[WhiteElo "1743"]
[BlackElo "1776"]
[Annotator "NA"]
[PlyCount "77"]
[EventDate "2020.08.15"]
[EventType "swiss"]
[EventCountry "POL"]
[SourceTitle "playchess.com"]
[Source "ChessBase"]
[SourceQuality "1"]
[TimeControl "40/5400+30:1800+30"]

1. e4 c6 2. d4 d5 3. Nc3 dxe4 4. Nxe4 Nf6 5. Nxf6+ exf6 6. c3 Bd6 7. Bd3 O-O 8. Ne2 Re8 9. Qc2 g6 10. O-O Nd7 11. Re1 Qc7 12. g3 c5 13. Bf4 cxd4 14. cxd4 Bxf4 15. Nxf4 Rxe1+ 16. Rxe1 Qd8 17. Nd5 Nf8 18. Ne7+ Kg7 19. d5 Be6 20. Qc5 b6 21. Qc6 Qxe7 22. Qxa8 Qb4 23. Rb1 Bh3 24. Qc6 Nd7 25. Qc4 Qd2 26. Qc3 Qg5 27. Be4 Nc5 28. f4 Qh5 29. Bf3 Qf5 30. Re1 h5 31. b4 Nb7 32. Be4 Qg4 33. Qc7 h4 34. Kf2 hxg3+ 35. hxg3 g5 36. fxg5 Qxg5 37. Qf4 Nd6 38. Bf3 Qxf4 39. gxf4 1-0